{"text_format":"3","workbook":"xlsx","n_sheets":1,"sheets":["Annexure D- Pricing Schedule"],"not_rendered":{"defined_names":1},"read":"whole","date_system":"1900"}

{"sheet":"Annexure D- Pricing Schedule","index":0,"n_rows":30,"n_cols":14,"rows_kept":30,"merged":[[0,0,0,8],[1,0,1,8],[2,0,2,8],[3,0,4,0],[3,1,4,1],[3,2,3,3],[3,4,3,5],[3,6,3,7],[3,8,4,8],[14,0,14,7],[15,0,15,6],[16,0,16,7],[18,0,18,8],[19,0,20,0],[19,1,20,1],[19,2,19,3],[19,4,19,5],[19,6,19,7],[19,8,20,8],[22,0,22,7],[23,0,23,6],[24,0,24,7],[27,0,27,7],[29,0,29,8]]}
["Annexure D"]
["Request for Proposals (RFP) for the provision of security systems maintenance at the CSIR Gauteng sites for a period of 36 months.\n\nRFP No:  "]
["Preventative and Corrective Maintenance "]
["Item Description","Quantities","Year 1",null,"Year 2",null,"Year 3",null,"Totals \n(VAT Excl.)"]
[null,null,"Rate per Month- All Inclusive (VAT Excl.)","Total Price\n(VAT Excl.)","Rate per Month- All Inclusive (VAT Excl.)","Total Price\n(VAT Excl.)","Rate per Month- All Inclusive (VAT Excl.)","Total Price\n(VAT Excl.)",{"$nulls":5},0.15]
["Maintenance  of\nAccess Control Systems",12,null,{"$f":"B6*C6","v":0},null,{"$f":"B6*E6","v":0},null,{"$f":"B6*G6","v":0},{"$f":"D6+F6+H6","v":0},{"$nulls":4},0]
["Maintenance of\nCameras ",12,null,{"$f":"B7*C7","v":0},null,{"$f":"B7*E7","v":0},null,{"$f":"B7*G7","v":0},{"$f":"D7+F7+H7","v":0},{"$nulls":4},0]
["Maintenance of\nAlarms Systems ",12,null,0,null,0,null,0,0,{"$nulls":4},0]
["Maintenance of\nRadio  ",12,null,0,null,0,null,0,0,{"$nulls":4},0]
["Maintenance of\nControl Room Software :Run backups of the CRIME database. ",12,null,0,null,0,null,0,0,{"$nulls":4},0]
["Maintenance of\nControl Room Software: Upgrade CRIME license ",12,null,0,null,0,null,0,0,{"$nulls":4},0]
["Maintenance of\nControl Room Software: Check the CRIME system for nuisance alarms. ",12,null,0,null,0,null,0,0,{"$nulls":4},0]
["Maintenance of\nControl Room Software: Check the CRIME system for nuisance alarms. ",12,null,0,null,0,null,0,0,{"$nulls":4},0]
["Maintenance  of Electrical Perimeter ",12,null,0,null,0,null,0,0,{"$nulls":4},0]
["Total Cost (VAT Exclusive)",{"$nulls":7},{"$f":"SUM(I6:I14)","v":0}]
["Value Added Tax (VAT)",{"$nulls":6},{"v":0,"d":"0%"},{"$f":"I15*H16","v":0}]
["Bid Price for Preventative Maintenance ",{"$nulls":7},{"$f":"I15+I16","v":0}]
[]
["After-Hour"]
["Item Description","Estimated Quantities for Evaluation purpose","Year 1",null,"Year 2",null,"Year 3",null,"Totals \n(VAT Excl.)"]
[null,null,"Rate per hour","Total Price\n(VAT Excl.)","Rate per hour","Total Price\n(VAT Excl.)","Rate per hour","Total Price\n(VAT Excl.)",{"$nulls":5},0.15]
["After-Hour Rate",50,null,{"$f":"B22*C22","v":0},null,{"$f":"B22*E22","v":0},null,{"$f":"B22*G22","v":0},{"$f":"D22+F22+H22","v":0},{"$nulls":4},0]
["Total Cost (VAT Exclusive)",{"$nulls":7},{"$f":"SUM(I22:I22)","v":0}]
["Value Added Tax (VAT)",{"$nulls":6},{"v":0,"d":"0%"},{"$f":"I23*H24","v":0}]
["Bid Price used for Evaluation purposes",{"$nulls":7},{"$f":"I23+I24","v":0}]
[]
[]
["Total Bid Price used for Evaluation purposes",{"$nulls":7},{"$f":"I17+I25","v":0}]
[]
["Bidder's Notes\n"]